[Event "November 21 Late 2023"]
[Site "https://www.chess.com"]
[Date "2023.11.21"]
[Round "1"]
[White "Khater, Sherif"]
[Black "Andreassen, Lars"]
[Result "0-1"]
[Board "153"]
[TimeControl "180+1"]
[WhiteFideId "2034280"]
[BlackFideId "1504878"]
[WhiteElo "2540"]
[BlackElo "2119"]
[WhiteTeam "USA"]
[BlackTeam "NOR"]
[WhiteClock "0:02:05"]
[BlackClock "0:01:26"]

1. d4 {[%clk 0:03:00]}  d5 {[%clk 0:02:55]} 2. Bf4 {[%clk 0:03:01]}  e6 {[%clk 0:02:55]} 3. e3 {[%clk 0:03:01]}  g5 {[%clk 0:02:52]} 4. Bg3 {[%clk 0:03:01]}  h5 {[%clk 0:02:47]} 5. h3 {[%clk 0:02:58]}  Nf6 {[%clk 0:02:43]} 6. Nd2 {[%clk 0:02:56]}  h4 {[%clk 0:02:39]} 7. Bh2 {[%clk 0:02:56]}  Bd6 {[%clk 0:02:37]} 8. Bxd6 {[%clk 0:02:55]}  Qxd6 {[%clk 0:02:38]} 9. a3 {[%clk 0:02:52]}  b6 {[%clk 0:02:29]} 10. Ngf3 {[%clk 0:02:51]}  Rg8 {[%clk 0:02:24]} 11. Ne5 {[%clk 0:02:50]}  Nbd7 {[%clk 0:02:20]} 12. Nxd7 {[%clk 0:02:41]}  Bxd7 {[%clk 0:02:21]} 13. Bd3 {[%clk 0:02:39]}  e5 {[%clk 0:02:15]} 14. c3 {[%clk 0:02:31]}  e4 {[%clk 0:02:10]} 15. Be2 {[%clk 0:02:31]}  g4 {[%clk 0:02:08]} 16. hxg4 {[%clk 0:02:30]}  Nxg4 {[%clk 0:02:05]} 17. Rxh4 {[%clk 0:02:28]}  Nxf2 {[%clk 0:02:02]} 18. Qb3 {[%clk 0:02:19]}  Qg3 {[%clk 0:01:45]} 19. Qxd5 {[%clk 0:02:15]}  Ng4+ {[%clk 0:01:26]} 20. Kd1 {[%clk 0:02:07]}  Nxe3+ {[%clk 0:01:27]} 21. Kc1 {[%clk 0:02:05]}  Qe1+ {[%clk 0:01:26]} 0-1

[Event "November 21 Late 2023"]
[Site "https://www.chess.com"]
[Date "2023.11.21"]
[Round "1"]
[White "Orphanator2009"]
[Black "ciutadella"]
[Result "1-0"]
[Board "154"]
[TimeControl "180+1"]
[WhiteElo "2198"]
[BlackElo "2538"]
[WhiteClock "0:00:21"]
[BlackClock "0:00:05"]

1. e4 {[%clk 0:03:00]}  c5 {[%clk 0:02:59]} 2. Nf3 {[%clk 0:02:59]}  e6 {[%clk 0:02:58]} 3. d4 {[%clk 0:02:59]}  cxd4 {[%clk 0:02:59]} 4. Nxd4 {[%clk 0:03:00]}  Nf6 {[%clk 0:02:59]} 5. Nc3 {[%clk 0:03:00]}  d6 {[%clk 0:02:59]} 6. Be3 {[%clk 0:02:47]}  Be7 {[%clk 0:02:54]} 7. f3 {[%clk 0:02:46]}  O-O {[%clk 0:02:52]} 8. Qd2 {[%clk 0:02:45]}  Nc6 {[%clk 0:02:53]} 9. O-O-O {[%clk 0:02:42]}  d5 {[%clk 0:02:54]} 10. exd5 {[%clk 0:02:38]}  Nxd5 {[%clk 0:02:55]} 11. Nxd5 {[%clk 0:02:38]}  Qxd5 {[%clk 0:02:55]} 12. Kb1 {[%clk 0:02:35]}  Bf6 {[%clk 0:02:32]} 13. Nxc6 {[%clk 0:01:46]}  Qxc6 {[%clk 0:02:32]} 14. Bd3 {[%clk 0:01:44]}  a5 {[%clk 0:02:20]} 15. Bg5 {[%clk 0:01:33]}  Bxg5 {[%clk 0:02:06]} 16. Qxg5 {[%clk 0:01:34]}  a4 {[%clk 0:02:01]} 17. a3 {[%clk 0:01:29]}  Qb6 {[%clk 0:01:51]} 18. Qh4 {[%clk 0:01:19]}  g6 {[%clk 0:01:30]} 19. Qh6 {[%clk 0:01:18]}  e5 {[%clk 0:01:10]} 20. h4 {[%clk 0:01:17]}  Qf6 {[%clk 0:01:02]} 21. h5 {[%clk 0:01:07]}  Qg7 {[%clk 0:01:02]} 22. Qe3 {[%clk 0:01:07]}  Be6 {[%clk 0:00:55]} 23. f4 {[%clk 0:01:00]}  exf4 {[%clk 0:00:51]} 24. Qxf4 {[%clk 0:01:01]}  Ra5 {[%clk 0:00:48]} 25. Rde1 {[%clk 0:00:58]}  Bf5 {[%clk 0:00:41]} 26. hxg6 {[%clk 0:00:56]}  hxg6 {[%clk 0:00:33]} 27. Qb4 {[%clk 0:00:49]}  Rd5 {[%clk 0:00:25]} 28. Bc4 {[%clk 0:00:44]}  Rd4 {[%clk 0:00:20]} 29. Qc3 {[%clk 0:00:41]}  Rg4 {[%clk 0:00:19]} 30. Qxg7+ {[%clk 0:00:32]}  Kxg7 {[%clk 0:00:20]} 31. Bd5 {[%clk 0:00:33]}  Rc8 {[%clk 0:00:20]} 32. Re7 {[%clk 0:00:30]}  Bxc2+ {[%clk 0:00:12]} 33. Ka1 {[%clk 0:00:31]}  Bb3 {[%clk 0:00:13]} 34. Rxf7+ {[%clk 0:00:28]}  Kg8 {[%clk 0:00:12]} 35. Rc7+ {[%clk 0:00:22]}  Bxd5 {[%clk 0:00:09]} 36. Rxc8+ {[%clk 0:00:22]}  Kg7 {[%clk 0:00:10]} 37. Rc7+ {[%clk 0:00:23]}  Kf6 {[%clk 0:00:10]} 38. Rd7 {[%clk 0:00:24]}  Bc6 {[%clk 0:00:10]} 39. Rd2 {[%clk 0:00:24]}  Kg5 {[%clk 0:00:10]} 40. Rh2 {[%clk 0:00:22]}  Rg3 {[%clk 0:00:10]} 41. Rf2 {[%clk 0:00:22]}  Kg4 {[%clk 0:00:09]} 42. Kb1 {[%clk 0:00:22]}  g5 {[%clk 0:00:09]} 43. Kc1 {[%clk 0:00:23]}  Rb3 {[%clk 0:00:09]} 44. Rd2 {[%clk 0:00:22]}  Be4 {[%clk 0:00:09]} 45. Kd1 {[%clk 0:00:22]}  Kf5 {[%clk 0:00:08]} 46. Rh3 {[%clk 0:00:20]}  Kf4 {[%clk 0:00:09]} 47. Rxb3 {[%clk 0:00:20]}  axb3 {[%clk 0:00:07]} 48. Ke1 {[%clk 0:00:20]}  g4 {[%clk 0:00:08]} 49. Kf2 {[%clk 0:00:20]}  Bc2 {[%clk 0:00:08]} 50. g3+ {[%clk 0:00:20]}  Ke4 {[%clk 0:00:08]} 51. Rd7 {[%clk 0:00:20]}  b5 {[%clk 0:00:08]} 52. Ke2 {[%clk 0:00:20]}  Ke5 {[%clk 0:00:06]} 53. Rb7 {[%clk 0:00:20]}  Ke4 {[%clk 0:00:06]} 54. Rxb5 {[%clk 0:00:20]}  Kd4 {[%clk 0:00:07]} 55. Rb4+ {[%clk 0:00:20]}  Kd5 {[%clk 0:00:05]} 56. Ke3 {[%clk 0:00:21]} 1-0

[Event "November 21 Late 2023"]
[Site "https://www.chess.com"]
[Date "2023.11.21"]
[Round "1"]
[White "Tifferet, Shaked"]
[Black "Elbebiber"]
[Result "1-0"]
[Board "155"]
[TimeControl "180+1"]
[WhiteFideId "2811529"]
[WhiteElo "2142"]
[BlackElo "2183"]
[WhiteTeam "ISR"]
[WhiteClock "0:00:11"]
[BlackClock "0:00:02"]

1. e4 {[%clk 0:02:59]}  d5 {[%clk 0:02:58]} 2. exd5 {[%clk 0:02:59]}  Nf6 {[%clk 0:02:58]} 3. Nf3 {[%clk 0:02:58]}  Nxd5 {[%clk 0:02:57]} 4. Bc4 {[%clk 0:02:58]}  Bf5 {[%clk 0:02:53]} 5. O-O {[%clk 0:02:55]}  e6 {[%clk 0:02:53]} 6. d4 {[%clk 0:02:52]}  Be7 {[%clk 0:02:51]} 7. Re1 {[%clk 0:02:51]}  O-O {[%clk 0:02:51]} 8. Bb3 {[%clk 0:02:49]}  Nc6 {[%clk 0:02:36]} 9. h3 {[%clk 0:02:40]}  a5 {[%clk 0:02:31]} 10. Ba4 {[%clk 0:02:28]}  Nb6 {[%clk 0:02:21]} 11. Bxc6 {[%clk 0:02:28]}  bxc6 {[%clk 0:02:22]} 12. Be3 {[%clk 0:02:26]}  Bf6 {[%clk 0:02:02]} 13. Nbd2 {[%clk 0:02:22]}  Nd5 {[%clk 0:01:58]} 14. c3 {[%clk 0:02:20]}  Rb8 {[%clk 0:01:55]} 15. Nc4 {[%clk 0:02:19]}  Ra8 {[%clk 0:01:41]} 16. Qa4 {[%clk 0:02:18]}  Nb6 {[%clk 0:01:25]} 17. Qxc6 {[%clk 0:02:14]}  Nxc4 {[%clk 0:01:17]} 18. Qxc4 {[%clk 0:02:15]}  Qd5 {[%clk 0:01:12]} 19. Qxd5 {[%clk 0:02:13]}  exd5 {[%clk 0:01:12]} 20. Bf4 {[%clk 0:02:14]}  c6 {[%clk 0:01:10]} 21. Nd2 {[%clk 0:02:04]}  a4 {[%clk 0:01:04]} 22. b4 {[%clk 0:01:56]}  Rfe8 {[%clk 0:00:56]} 23. f3 {[%clk 0:01:44]}  h6 {[%clk 0:00:55]} 24. g4 {[%clk 0:01:36]}  Bd3 {[%clk 0:00:52]} 25. Kf2 {[%clk 0:01:33]}  Bh4+ {[%clk 0:00:50]} 26. Bg3 {[%clk 0:01:33]}  Bg5 {[%clk 0:00:45]} 27. f4 {[%clk 0:01:33]}  Bf6 {[%clk 0:00:45]} 28. h4 {[%clk 0:01:30]}  g6 {[%clk 0:00:44]} 29. a3 {[%clk 0:01:22]}  Kg7 {[%clk 0:00:42]} 30. Nf3 {[%clk 0:01:15]}  Be4 {[%clk 0:00:39]} 31. Nd2 {[%clk 0:01:15]}  Bd3 {[%clk 0:00:39]} 32. Re3 {[%clk 0:01:14]}  Rxe3 {[%clk 0:00:37]} 33. Kxe3 {[%clk 0:01:15]}  Bb5 {[%clk 0:00:37]} 34. Kf2 {[%clk 0:01:11]}  Bd8 {[%clk 0:00:34]} 35. Re1 {[%clk 0:01:10]}  Kf8 {[%clk 0:00:32]} 36. Nf3 {[%clk 0:01:01]}  f6 {[%clk 0:00:27]} 37. f5 {[%clk 0:01:00]}  gxf5 {[%clk 0:00:25]} 38. gxf5 {[%clk 0:01:01]}  Be7 {[%clk 0:00:23]} 39. Bf4 {[%clk 0:00:56]}  h5 {[%clk 0:00:22]} 40. Rg1 {[%clk 0:00:40]}  Kf7 {[%clk 0:00:22]} 41. Bh6 {[%clk 0:00:37]}  Rg8 {[%clk 0:00:20]} 42. Rxg8 {[%clk 0:00:37]}  Kxg8 {[%clk 0:00:21]} 43. Ke3 {[%clk 0:00:36]}  Kf7 {[%clk 0:00:20]} 44. Ng1 {[%clk 0:00:29]}  Bd6 {[%clk 0:00:19]} 45. Bf4 {[%clk 0:00:27]}  Bf8 {[%clk 0:00:19]} 46. Nh3 {[%clk 0:00:25]}  Be7 {[%clk 0:00:18]} 47. Bg3 {[%clk 0:00:25]}  Bf8 {[%clk 0:00:16]} 48. Bf4 {[%clk 0:00:23]}  Bg7 {[%clk 0:00:14]} 49. Kd2 {[%clk 0:00:21]}  Bc4 {[%clk 0:00:13]} 50. Be3 {[%clk 0:00:18]}  Bb3 {[%clk 0:00:13]} 51. Nf4 {[%clk 0:00:18]}  Bf8 {[%clk 0:00:10]} 52. Nxh5 {[%clk 0:00:18]}  Bd6 {[%clk 0:00:10]} 53. Bf4 {[%clk 0:00:17]}  Bf8 {[%clk 0:00:11]} 54. Ng3 {[%clk 0:00:17]}  Bc4 {[%clk 0:00:11]} 55. Ke3 {[%clk 0:00:15]}  Bb3 {[%clk 0:00:11]} 56. Kf3 {[%clk 0:00:15]}  Bc2 {[%clk 0:00:11]} 57. Ke3 {[%clk 0:00:15]}  Be7 {[%clk 0:00:10]} 58. Kd2 {[%clk 0:00:15]}  Bb1 {[%clk 0:00:11]} 59. Kc1 {[%clk 0:00:15]}  Ba2 {[%clk 0:00:11]} 60. h5 {[%clk 0:00:11]}  Bc4 {[%clk 0:00:10]} 61. h6 {[%clk 0:00:10]}  Bf8 {[%clk 0:00:10]} 62. Kd2 {[%clk 0:00:10]}  Bb3 {[%clk 0:00:09]} 63. Nf1 {[%clk 0:00:09]}  Bc4 {[%clk 0:00:09]} 64. Ne3 {[%clk 0:00:09]}  Bb3 {[%clk 0:00:10]} 65. Kc1 {[%clk 0:00:09]}  Be7 {[%clk 0:00:09]} 66. Kb2 {[%clk 0:00:09]}  Bf8 {[%clk 0:00:09]} 67. Kc1 {[%clk 0:00:09]}  Be7 {[%clk 0:00:10]} 68. Ng4 {[%clk 0:00:09]}  Bf8 {[%clk 0:00:10]} 69. Ne5+ {[%clk 0:00:08]}  fxe5 {[%clk 0:00:09]} 70. dxe5 {[%clk 0:00:09]}  Be7 {[%clk 0:00:08]} 71. e6+ {[%clk 0:00:09]}  Kg8 {[%clk 0:00:08]} 72. Be5 {[%clk 0:00:09]}  Kh7 {[%clk 0:00:08]} 73. f6 {[%clk 0:00:09]}  Bxf6 {[%clk 0:00:07]} 74. Bxf6 {[%clk 0:00:10]}  d4 {[%clk 0:00:06]} 75. e7 {[%clk 0:00:08]}  Bf7 {[%clk 0:00:06]} 76. c4 {[%clk 0:00:05]}  Kxh6 {[%clk 0:00:06]} 77. b5 {[%clk 0:00:05]}  cxb5 {[%clk 0:00:05]} 78. cxb5 {[%clk 0:00:06]}  Kg6 {[%clk 0:00:05]} 79. b6 {[%clk 0:00:05]}  Kxf6 {[%clk 0:00:05]} 80. b7 {[%clk 0:00:05]}  Kxe7 {[%clk 0:00:03]} 81. b8=Q {[%clk 0:00:06]}  Be6 {[%clk 0:00:04]} 82. Qa7+ {[%clk 0:00:05]}  Kf6 {[%clk 0:00:04]} 83. Qxd4+ {[%clk 0:00:06]}  Kf5 {[%clk 0:00:04]} 84. Qxa4 {[%clk 0:00:06]}  Bd5 {[%clk 0:00:04]} 85. Qa5 {[%clk 0:00:07]}  Ke4 {[%clk 0:00:04]} 86. Qb4+ {[%clk 0:00:08]}  Ke5 {[%clk 0:00:04]} 87. Kb2 {[%clk 0:00:09]}  Ke6 {[%clk 0:00:05]} 88. Qb6+ {[%clk 0:00:09]}  Kd7 {[%clk 0:00:04]} 89. Kc3 {[%clk 0:00:09]}  Bc6 {[%clk 0:00:05]} 90. Kd4 {[%clk 0:00:10]}  Ba4 {[%clk 0:00:04]} 91. Kc5 {[%clk 0:00:11]}  Bc6 {[%clk 0:00:05]} 92. Qxc6+ {[%clk 0:00:11]}  Kd8 {[%clk 0:00:02]} 93. Qb7 {[%clk 0:00:11]} 1-0

[Event "November 21 Late 2023"]
[Site "https://www.chess.com"]
[Date "2023.11.21"]
[Round "1"]
[White "Kniazev, Igor"]
[Black "Gavrilov, Maxim"]
[Result "0-1"]
[Board "158"]
[TimeControl "180+1"]
[WhiteFideId "4136349"]
[BlackFideId "24271454"]
[WhiteElo "1862"]
[BlackElo "2157"]
[WhiteTeam "RUS"]
[BlackTeam "RUS"]
[WhiteClock "0:00:00"]
[BlackClock "0:00:10"]

1. e4 {[%clk 0:02:58]}  c5 {[%clk 0:02:58]} 2. c3 {[%clk 0:02:57]}  d5 {[%clk 0:02:57]} 3. exd5 {[%clk 0:02:57]}  Qxd5 {[%clk 0:02:58]} 4. Nf3 {[%clk 0:02:56]}  Nc6 {[%clk 0:02:57]} 5. Na3 {[%clk 0:02:56]}  Bg4 {[%clk 0:02:56]} 6. Be2 {[%clk 0:02:55]}  e6 {[%clk 0:02:55]} 7. d4 {[%clk 0:02:49]}  cxd4 {[%clk 0:02:47]} 8. Nb5 {[%clk 0:02:49]}  Qd8 {[%clk 0:02:36]} 9. Nbxd4 {[%clk 0:02:44]}  Nf6 {[%clk 0:02:31]} 10. Nxc6 {[%clk 0:02:41]}  Qxd1+ {[%clk 0:02:29]} 11. Bxd1 {[%clk 0:02:41]}  bxc6 {[%clk 0:02:24]} 12. O-O {[%clk 0:02:41]}  Bd6 {[%clk 0:02:21]} 13. Nd4 {[%clk 0:02:37]}  c5 {[%clk 0:02:08]} 14. Nb5 {[%clk 0:02:32]}  Bb8 {[%clk 0:02:02]} 15. Be3 {[%clk 0:02:26]}  a6 {[%clk 0:01:55]} 16. Na3 {[%clk 0:02:18]}  Bxd1 {[%clk 0:01:51]} 17. Rfxd1 {[%clk 0:02:15]}  Ng4 {[%clk 0:01:51]} 18. Bxc5 {[%clk 0:02:13]}  Bxh2+ {[%clk 0:01:48]} 19. Kf1 {[%clk 0:02:12]}  Bc7 {[%clk 0:01:44]} 20. Nc4 {[%clk 0:02:09]}  f6 {[%clk 0:01:32]} 21. Rd4 {[%clk 0:02:06]}  Ne5 {[%clk 0:01:26]} 22. Nd6+ {[%clk 0:01:59]}  Bxd6 {[%clk 0:01:25]} 23. Rxd6 {[%clk 0:01:51]}  Kf7 {[%clk 0:01:25]} 24. Rad1 {[%clk 0:01:48]}  Rhc8 {[%clk 0:01:17]} 25. b4 {[%clk 0:01:42]}  a5 {[%clk 0:01:12]} 26. a3 {[%clk 0:01:38]}  g5 {[%clk 0:00:51]} 27. f3 {[%clk 0:01:16]}  h5 {[%clk 0:00:39]} 28. Rb6 {[%clk 0:01:12]}  Rc7 {[%clk 0:00:35]} 29. Re1 {[%clk 0:00:47]}  Re8 {[%clk 0:00:29]} 30. Re3 {[%clk 0:00:45]}  Nc4 {[%clk 0:00:28]} 31. Ke2 {[%clk 0:00:37]}  Nxe3 {[%clk 0:00:22]} 32. Kxe3 {[%clk 0:00:38]}  axb4 {[%clk 0:00:22]} 33. axb4 {[%clk 0:00:29]}  Ra8 {[%clk 0:00:23]} 34. Kd4 {[%clk 0:00:28]}  Ra2 {[%clk 0:00:22]} 35. Bd6 {[%clk 0:00:24]}  Rd7 {[%clk 0:00:21]} 36. c4 {[%clk 0:00:20]}  Rxg2 {[%clk 0:00:19]} 37. c5 {[%clk 0:00:19]}  h4 {[%clk 0:00:19]} 38. Ke3 {[%clk 0:00:17]}  h3 {[%clk 0:00:18]} 39. c6 {[%clk 0:00:15]}  Rxd6 {[%clk 0:00:17]} 40. c7 {[%clk 0:00:16]}  Rc2 {[%clk 0:00:12]} 41. Rxd6 {[%clk 0:00:15]}  Rxc7 {[%clk 0:00:12]} 42. Rd2 {[%clk 0:00:10]}  Rb7 {[%clk 0:00:11]} 43. Rb2 {[%clk 0:00:08]}  h2 {[%clk 0:00:11]} 44. Rxh2 {[%clk 0:00:07]}  Rxb4 {[%clk 0:00:11]} 45. Rh7+ {[%clk 0:00:08]}  Kg6 {[%clk 0:00:11]} 46. Re7 {[%clk 0:00:09]}  Kf5 {[%clk 0:00:12]} 47. Re8 {[%clk 0:00:09]}  e5 {[%clk 0:00:12]} 48. Kf2 {[%clk 0:00:09]}  Kf4 {[%clk 0:00:12]} 49. Rf8 {[%clk 0:00:09]}  f5 {[%clk 0:00:12]} 50. Kg2 {[%clk 0:00:08]}  Rb2+ {[%clk 0:00:12]} 51. Kh3 {[%clk 0:00:09]}  Rf2 {[%clk 0:00:12]} 52. Ra8 {[%clk 0:00:07]}  Rxf3+ {[%clk 0:00:12]} 53. Kg2 {[%clk 0:00:08]}  Rb3 {[%clk 0:00:12]} 54. Ra4+ {[%clk 0:00:09]}  e4 {[%clk 0:00:12]} 55. Ra6 {[%clk 0:00:08]}  g4 {[%clk 0:00:13]} 56. Ra5 {[%clk 0:00:08]}  Rb2+ {[%clk 0:00:13]} 57. Kg1 {[%clk 0:00:08]}  Kg3 {[%clk 0:00:12]} 58. Ra3+ {[%clk 0:00:07]}  Kf4 {[%clk 0:00:12]} 59. Ra5 {[%clk 0:00:07]}  e3 {[%clk 0:00:12]} 60. Kf1 {[%clk 0:00:06]}  Ke4 {[%clk 0:00:10]} 61. Rc5 {[%clk 0:00:04]}  f4 {[%clk 0:00:10]} 62. Rc1 {[%clk 0:00:03]}  g3 {[%clk 0:00:10]} 63. Kg1 {[%clk 0:00:00]}  Kf3 {[%clk 0:00:10]} 0-1

[Event "November 21 Late 2023"]
[Site "https://www.chess.com"]
[Date "2023.11.21"]
[Round "1"]
[White "Prithu Gupta"]
[Black "DraningWaterHi"]
[Result "1-0"]
[Board "161"]
[TimeControl "180+1"]
[WhiteFideId "46618546"]
[WhiteElo "2344"]
[BlackElo "2115"]
[WhiteTeam "IND"]
[WhiteClock "0:00:27"]
[BlackClock "0:00:25"]

1. d4 {[%clk 0:02:59]}  Nf6 {[%clk 0:02:28]} 2. c4 {[%clk 0:02:55]}  g6 {[%clk 0:02:27]} 3. Nf3 {[%clk 0:02:54]}  Bg7 {[%clk 0:02:25]} 4. e3 {[%clk 0:02:55]}  O-O {[%clk 0:02:23]} 5. Be2 {[%clk 0:02:55]}  d6 {[%clk 0:02:23]} 6. O-O {[%clk 0:02:56]}  Nc6 {[%clk 0:02:22]} 7. Nc3 {[%clk 0:02:56]}  e5 {[%clk 0:02:23]} 8. b3 {[%clk 0:02:52]}  Bd7 {[%clk 0:02:19]} 9. Bb2 {[%clk 0:02:50]}  Re8 {[%clk 0:02:16]} 10. d5 {[%clk 0:02:49]}  Ne7 {[%clk 0:02:16]} 11. e4 {[%clk 0:02:50]}  Nh5 {[%clk 0:02:14]} 12. g3 {[%clk 0:02:49]}  f5 {[%clk 0:02:14]} 13. Ng5 {[%clk 0:02:49]}  Nf6 {[%clk 0:02:13]} 14. c5 {[%clk 0:02:27]}  h6 {[%clk 0:02:02]} 15. cxd6 {[%clk 0:02:25]}  cxd6 {[%clk 0:02:01]} 16. Ne6 {[%clk 0:02:25]}  Bxe6 {[%clk 0:02:01]} 17. dxe6 {[%clk 0:02:25]}  f4 {[%clk 0:02:01]} 18. Nb5 {[%clk 0:02:04]}  Nc8 {[%clk 0:02:00]} 19. Rc1 {[%clk 0:02:02]}  Re7 {[%clk 0:01:58]} 20. Bxe5 {[%clk 0:02:00]}  Nxe4 {[%clk 0:01:56]} 21. Bxg7 {[%clk 0:01:57]}  Kxg7 {[%clk 0:01:57]} 22. Qd4+ {[%clk 0:01:56]}  Nf6 {[%clk 0:01:48]} 23. Bf3 {[%clk 0:01:49]}  a6 {[%clk 0:01:46]} 24. Nc3 {[%clk 0:01:44]}  Rb8 {[%clk 0:01:41]} 25. Nd5 {[%clk 0:01:37]}  Rxe6 {[%clk 0:01:39]} 26. Rc7+ {[%clk 0:01:37]}  Kf8 {[%clk 0:01:32]} 27. Nxf4 {[%clk 0:01:35]}  Qe8 {[%clk 0:01:11]} 28. Nxe6+ {[%clk 0:01:26]}  Qxe6 {[%clk 0:01:12]} 29. Kg2 {[%clk 0:00:57]}  b5 {[%clk 0:01:04]} 30. Re1 {[%clk 0:00:56]}  Qf5 {[%clk 0:00:55]} 31. Bc6 {[%clk 0:00:38]}  Nb6 {[%clk 0:00:33]} 32. Qxd6+ {[%clk 0:00:33]}  Kg8 {[%clk 0:00:32]} 33. Qe7 {[%clk 0:00:28]}  Nh5 {[%clk 0:00:25]} 34. Qh7+ {[%clk 0:00:27]}  Kf8 {[%clk 0:00:25]} 35. Qh8# {[%clk 0:00:27]} 1-0

[Event "November 21 Late 2023"]
[Site "https://www.chess.com"]
[Date "2023.11.21"]
[Round "1"]
[White "Smirnov, Timofey"]
[Black "Van Dael, Siem"]
[Result "0-1"]
[Board "162"]
[TimeControl "180+1"]
[WhiteFideId "24176427"]
[BlackFideId "1049771"]
[WhiteElo "2245"]
[BlackElo "2252"]
[WhiteTeam "RUS"]
[BlackTeam "NED"]
[WhiteClock "0:01:11"]
[BlackClock "0:01:17"]

1. d4 {[%clk 0:02:59]}  Nf6 {[%clk 0:02:58]} 2. Bf4 {[%clk 0:02:59]}  g6 {[%clk 0:02:56]} 3. Nc3 {[%clk 0:02:59]}  d5 {[%clk 0:02:57]} 4. e3 {[%clk 0:02:58]}  Bg7 {[%clk 0:02:57]} 5. Nf3 {[%clk 0:02:56]}  O-O {[%clk 0:02:57]} 6. h4 {[%clk 0:02:55]}  Bg4 {[%clk 0:02:54]} 7. Be2 {[%clk 0:02:48]}  c5 {[%clk 0:02:53]} 8. Ne5 {[%clk 0:02:42]}  Bxe2 {[%clk 0:02:52]} 9. Qxe2 {[%clk 0:02:34]}  cxd4 {[%clk 0:02:51]} 10. exd4 {[%clk 0:02:34]}  Nc6 {[%clk 0:02:52]} 11. Nxc6 {[%clk 0:02:30]}  bxc6 {[%clk 0:02:52]} 12. O-O {[%clk 0:02:26]}  Nh5 {[%clk 0:02:42]} 13. Bh2 {[%clk 0:02:22]}  e6 {[%clk 0:02:38]} 14. Rad1 {[%clk 0:02:18]}  Qxh4 {[%clk 0:02:37]} 15. Qd3 {[%clk 0:01:53]}  Qg5 {[%clk 0:02:21]} 16. Na4 {[%clk 0:01:45]}  Rfe8 {[%clk 0:01:47]} 17. Nc5 {[%clk 0:01:25]}  e5 {[%clk 0:01:33]} 18. c3 {[%clk 0:01:25]}  e4 {[%clk 0:01:33]} 19. Qe2 {[%clk 0:01:17]}  Nf4 {[%clk 0:01:29]} 20. Qd2 {[%clk 0:01:11]}  Qxg2# {[%clk 0:01:17]} 0-1

[Event "November 21 Late 2023"]
[Site "https://www.chess.com"]
[Date "2023.11.21"]
[Round "1"]
[White "Yushko, Olga"]
[Black "Pinto, Daniel"]
[Result "0-1"]
[Board "164"]
[TimeControl "180+1"]
[WhiteFideId "14114500"]
[BlackFideId "3303144"]
[WhiteElo "2028"]
[BlackElo "2149"]
[WhiteTeam "UKR"]
[BlackTeam "BOL"]
[WhiteClock "0:00:48"]
[BlackClock "0:00:09"]

1. d4 {[%clk 0:02:59]}  Nf6 {[%clk 0:02:54]} 2. c4 {[%clk 0:02:59]}  c5 {[%clk 0:02:53]} 3. d5 {[%clk 0:02:59]}  d6 {[%clk 0:02:53]} 4. Nc3 {[%clk 0:02:59]}  g6 {[%clk 0:02:54]} 5. e4 {[%clk 0:03:00]}  Bg7 {[%clk 0:02:54]} 6. Bd3 {[%clk 0:03:00]}  O-O {[%clk 0:02:55]} 7. Nf3 {[%clk 0:02:59]}  e6 {[%clk 0:02:55]} 8. O-O {[%clk 0:02:58]}  exd5 {[%clk 0:02:56]} 9. exd5 {[%clk 0:02:51]}  Re8 {[%clk 0:02:53]} 10. h3 {[%clk 0:02:51]}  Nfd7 {[%clk 0:02:25]} 11. Nb5 {[%clk 0:02:48]}  Ne5 {[%clk 0:02:22]} 12. Bf4 {[%clk 0:02:41]}  a6 {[%clk 0:02:20]} 13. Nc3 {[%clk 0:02:38]}  Nxd3 {[%clk 0:02:12]} 14. Qxd3 {[%clk 0:02:38]}  Bf5 {[%clk 0:02:13]} 15. Qd2 {[%clk 0:02:38]}  Nd7 {[%clk 0:01:49]} 16. g4 {[%clk 0:02:38]}  Be4 {[%clk 0:01:48]} 17. Nxe4 {[%clk 0:02:33]}  Rxe4 {[%clk 0:01:49]} 18. Bxd6 {[%clk 0:02:32]}  Qf6 {[%clk 0:01:43]} 19. Ng5 {[%clk 0:02:25]}  Rd4 {[%clk 0:01:42]} 20. Qe3 {[%clk 0:02:18]}  Qxd6 {[%clk 0:01:41]} 21. Rac1 {[%clk 0:02:11]}  Be5 {[%clk 0:01:25]} 22. Rc2 {[%clk 0:02:03]}  Bf4 {[%clk 0:01:24]} 23. Ne4 {[%clk 0:01:50]}  Qe5 {[%clk 0:01:24]} 24. Qb3 {[%clk 0:01:44]}  Qxe4 {[%clk 0:01:13]} 25. Qxb7 {[%clk 0:01:44]}  Rd8 {[%clk 0:01:12]} 26. f3 {[%clk 0:01:34]}  Qe3+ {[%clk 0:01:04]} 27. Kg2 {[%clk 0:01:34]}  Bd6 {[%clk 0:00:34]} 28. Qc6 {[%clk 0:01:20]}  Qf4 {[%clk 0:00:33]} 29. Kh1 {[%clk 0:01:09]}  Qg3 {[%clk 0:00:22]} 30. Rg2 {[%clk 0:01:02]}  Qxh3+ {[%clk 0:00:21]} 31. Kg1 {[%clk 0:01:03]}  Ne5 {[%clk 0:00:11]} 32. Qb6 {[%clk 0:01:00]}  Rd7 {[%clk 0:00:09]} 33. Qb3 {[%clk 0:00:58]}  Rd3 {[%clk 0:00:09]} 34. Qc2 {[%clk 0:00:57]}  Nxf3+ {[%clk 0:00:09]} 35. Rxf3 {[%clk 0:00:55]}  Qxf3 {[%clk 0:00:10]} 36. Rf2 {[%clk 0:00:48]}  Rd1+ {[%clk 0:00:09]} 0-1

[Event "November 21 Late 2023"]
[Site "https://www.chess.com"]
[Date "2023.11.21"]
[Round "1"]
[White "D`Arruda, Ricardo D."]
[Black "Sailer, Mike"]
[Result "1-0"]
[Board "165"]
[TimeControl "180+1"]
[WhiteFideId "100692"]
[BlackFideId "2012901"]
[WhiteElo "2528"]
[BlackElo "2109"]
[WhiteTeam "ARG"]
[BlackTeam "USA"]
[WhiteClock "0:00:43"]
[BlackClock "0:00:06"]

1. Nf3 {[%clk 0:02:57]}  g6 {[%clk 0:02:58]} 2. d4 {[%clk 0:02:57]}  Bg7 {[%clk 0:02:53]} 3. e4 {[%clk 0:02:57]}  c5 {[%clk 0:02:47]} 4. c3 {[%clk 0:02:55]}  cxd4 {[%clk 0:02:46]} 5. cxd4 {[%clk 0:02:55]}  d5 {[%clk 0:02:47]} 6. exd5 {[%clk 0:02:53]}  Nf6 {[%clk 0:02:45]} 7. Nc3 {[%clk 0:02:53]}  Nxd5 {[%clk 0:02:44]} 8. Bc4 {[%clk 0:02:53]}  Nxc3 {[%clk 0:02:41]} 9. bxc3 {[%clk 0:02:52]}  O-O {[%clk 0:02:41]} 10. O-O {[%clk 0:02:52]}  Nc6 {[%clk 0:02:35]} 11. Bf4 {[%clk 0:02:48]}  Na5 {[%clk 0:02:18]} 12. Be2 {[%clk 0:02:46]}  Bf5 {[%clk 0:02:11]} 13. Re1 {[%clk 0:02:43]}  Rc8 {[%clk 0:02:11]} 14. Qd2 {[%clk 0:02:42]}  Nc4 {[%clk 0:02:05]} 15. Bxc4 {[%clk 0:02:41]}  Rxc4 {[%clk 0:02:05]} 16. Be5 {[%clk 0:02:41]}  Bxe5 {[%clk 0:01:58]} 17. Nxe5 {[%clk 0:02:42]}  Rc7 {[%clk 0:01:52]} 18. Re3 {[%clk 0:02:41]}  Qd6 {[%clk 0:01:43]} 19. Rae1 {[%clk 0:02:40]}  Rfc8 {[%clk 0:01:37]} 20. Rf3 {[%clk 0:02:21]}  Be6 {[%clk 0:01:20]} 21. h4 {[%clk 0:02:12]}  Bd5 {[%clk 0:01:18]} 22. Rg3 {[%clk 0:02:08]}  Qf6 {[%clk 0:01:03]} 23. h5 {[%clk 0:02:04]}  Qf5 {[%clk 0:00:51]} 24. hxg6 {[%clk 0:02:01]}  hxg6 {[%clk 0:00:44]} 25. Ng4 {[%clk 0:02:01]}  Qh5 {[%clk 0:00:33]} 26. Ree3 {[%clk 0:01:50]}  Qh7 {[%clk 0:00:16]} 27. Rh3 {[%clk 0:01:46]}  Qg7 {[%clk 0:00:17]} 28. Reg3 {[%clk 0:01:38]}  Be6 {[%clk 0:00:17]} 29. Nh6+ {[%clk 0:01:37]}  Kf8 {[%clk 0:00:17]} 30. Rh4 {[%clk 0:01:38]}  Ke8 {[%clk 0:00:10]} 31. d5 {[%clk 0:01:27]}  Bd7 {[%clk 0:00:08]} 32. d6 {[%clk 0:01:11]}  exd6 {[%clk 0:00:07]} 33. Qxd6 {[%clk 0:01:11]}  Rc6 {[%clk 0:00:07]} 34. Re3+ {[%clk 0:01:05]}  Be6 {[%clk 0:00:08]} 35. Qb4 {[%clk 0:00:56]}  R8c7 {[%clk 0:00:06]} 36. Ng4 {[%clk 0:00:52]}  Kd8 {[%clk 0:00:07]} 37. Ne5 {[%clk 0:00:51]}  Rb6 {[%clk 0:00:06]} 38. Rd4+ {[%clk 0:00:50]}  Kc8 {[%clk 0:00:06]} 39. Qa4 {[%clk 0:00:45]}  Rb1+ {[%clk 0:00:06]} 40. Kh2 {[%clk 0:00:45]}  Qh6+ {[%clk 0:00:07]} 41. Rh3 {[%clk 0:00:44]}  Bxh3 {[%clk 0:00:06]} 42. Qe8# {[%clk 0:00:43]} 1-0